Cogmind - Beta 13 @@@ ROGUE MODE // 2024.04.07 @ 09:19:07 Player: DURANDAL Result: Destroyed by X-57 Shotgunner with High-powered Shotgun Performance ------------- Evolutions (2) 1000 Regions Visited (5) 1000 Robots Destroyed (17) 85 Value Destroyed (455) 455 Prototype IDs (1) 20 Alien Tech Used (0) 0 Bonus (300) 300 TOTAL SCORE: 2860 Bonus ------- Aligned with FarCom 300 Cogmind --------- Core Integrity 0/550 Matter 300/300 Energy 100/100 System Corruption 0% Temperature Cool (0) Movement Core (1350) Ox26 Location -8/Materials Parts ------- > --- POWER (1) -------- (None) > --- PROPULSION (4) --- (None) > --- UTILITY (4) ------ Huge Storage Unit Targeting Computer > --- WEAPON (2) ------- (None) > --- INVENTORY (25) --- Ion Engine Ion Engine Light Ion Engine Light Treads Heat Sink Large Storage Unit Superbattery (1500) Medium Matter Pod (45) Medium Matter Pod (0) Terrain Scanner Targeting Computer Armor Integrity Analyzer Recoil Stabilizer Core Shielding Core Shielding Light Armor Plating Tractor Beam Peak State ------------ > --- POWER ------------ Ion Engine > --- PROPULSION ------- Aluminum Leg Aluminum Leg > --- UTILITY ---------- Superbattery Targeting Computer > --- WEAPON ----------- Light Assault Rifle Light Assault Rifle > --- INVENTORY -------- Ion Engine Light Ion Engine Terrain Scanner Core Shielding Light Armor Plating [Rating: 16] Favorites ----------- Power Ion Engine Engine Ion Engine Propulsion Aluminum Leg Treads Light Treads Leg Aluminum Leg Utility Targeting Computer Device Recoil Stabilizer Storage Huge Storage Unit Processor Targeting Computer Protection Light Armor Plating Weapon Light Assault Rifle Ballistic Gun Light Assault Rifle Launcher Grenade Launcher Special Weapon Mining Laser Build | -11 -10 -10 -10 -9 -8 ------- Run | Yrd Mat Min Exi Min Mat Slots Evolved 4 | . . . . . 4 Power . | . . . . . . Propulsion 2 | . . . . . 2 Utility 2 | . . . . . 2 Weapon . | . . . . . . Parts Attached 30 | 6 14 . 2 . 8 Power 4 | 1 3 . . . . Engine 4 | 1 3 . . . . Core . | . . . . . . Reactor . | . . . . . . Propulsion 8 | 2 3 . . . 3 Treads 2 | 2 . . . . . Leg 6 | . 3 . . . 3 Wheel . | . . . . . . Hover . | . . . . . . Flight . | . . . . . . Utility 10 | 1 4 . 2 . 3 Device 1 | . . . . . 1 Storage 6 | 1 3 . 2 . . Processor 2 | . 1 . . . 1 Hackware . | . . . . . . Protection 1 | . . . . . 1 Artifact . | . . . . . . Weapon 8 | 2 4 . . . 2 Energy Gun . | . . . . . . Energy Cannon . | . . . . . . Ballistic Gun 6 | 2 4 . . . . Ballistic Cannon . | . . . . . . Launcher 1 | . . . . . 1 Special Weapon 1 | . . . . . 1 Impact Weapon . | . . . . . . Slashing Weapon . | . . . . . . Piercing Weapon . | . . . . . . Special Melee Weapon . | . . . . . . Unidentified Prototypes 1 | . . . 1 . . Parts Lost 17 | . 5 . . . 12 Power 1 | . . . . . 1 Propulsion 7 | . 2 . . . 5 Utility 2 | . . . . . 2 Weapon 7 | . 3 . . . 4 Highest Loss Streak 7 | . 2 . . . 7 To Critical Strikes . | . . . . . . Average Slot Usage (%) 96 | . 97 100 100 100 82 Engine 13 | . 13 14 14 14 6 Treads 2 | . 4 . . . . Leg 25 | . 23 28 28 28 31 Storage 13 | . 14 14 14 14 9 Processor 13 | . 13 14 14 14 11 Ballistic Gun 25 | . 26 28 28 28 11 Naked Turns . | . . . . . . Heaviest Build 91 | 13 88 87 87 87 91 Greatest Support 40 | 40 40 20 20 20 40 Greatest Overweight (x) 26 | . 4 4 4 4 26 Average Overweight (x) 3 | . 2 4 3 4 2 Largest Inventory Capacity 25 | 8 25 25 25 25 25 Average Capacity 23 | 6 23 25 24 25 25 Most Carried 22 | 5 21 21 22 22 21 Average Carried 17 | 2 17 21 20 22 18 Final Capacity 25 | 8 25 25 25 25 25 Final Carried 22 | 4 21 21 22 22 17 Class Distribution -------------------- 100% | Mutant Dominant Class ---------------- Mutant | -10/Materials Mutant | -10/Mines Mutant | -10/Exiles Mutant | -9/Mines Mutant | -8/Materials Resources | -11 -10 -10 -10 -9 -8 ----------- Run | Yrd Mat Min Exi Min Mat Matter Collected 713 | 175 414 . 63 . 61 Remotely . | . . . . . . Salvage Created 487 | . 414 . . . 73 Parts 31 | . 23 . . . 8 Haulers Intercepted 1 | . 1 . . . . Recyclers Shooed 1 | . . . . . 1 Parts Field Recycled . | . . . . . . Retrieved Matter . | . . . . . . Parts Self-Destructed . | . . . . . . Prevented . | . . . . . . Kills | -11 -10 -10 -10 -9 -8 ------- Run | Yrd Mat Min Exi Min Mat Combat Hostiles Destroyed 11 | . 9 . . . 2 Guns 9 | . 9 . . . . AOE 2 | . . . . . 2 Classes Destroyed 7 | . 5 . . . 2 Builder 1 | . . . . . 1 Hauler 1 | . 1 . . . . Operator 3 | . 3 . . . . Watcher 1 | . 1 . . . . Swarmer 3 | . 3 . . . . Grunt 6 | . 6 . . . . Specialist 2 | . . . . . 2 Best Kill Streak 3 | . 2 . . . 3 Combat Bots Only 2 | . 2 . . . 2 Max Kills in Single Turn 2 | . 1 . . . 2 Gunslinging . | . . . . . . Exploded 1 | . . . . . 1 Melee . | . . . . . . Uniques/NPCs Destroyed . | . . . . . . Combat | -11 -10 -10 -10 -9 -8 -------- Run | Yrd Mat Min Exi Min Mat Hostile Shots Fired 231 | . 90 . . . 141 Missed 68 | . 19 . . . 49 Damage Taken 2345 | . 873 . . . 1472 Core 685 | . 125 . . . 560 Absorbed by Shields . | . . . . . . Core Remaining (%) 75 | 100 . . . 50 . Volleys Fired 84 | . 72 . . . 12 Largest 2 | . 2 . . . 2 Hottest 100 | . 40 . . . 100 Shots Fired 151 | . 133 . . . 18 Gun 144 | . 133 . . . 11 Cannon . | . . . . . . Launcher 4 | . . . . . 4 Special 3 | . . . . . 3 Kinetic 144 | . 133 . . . 11 Thermal 3 | . . . . . 3 Explosive 4 | . . . . . 4 Electromagnetic . | . . . . . . Robot Hit Streak 14 | . 14 . . . 12 Robot Miss Streak 5 | . 5 . . . 3 Penetration Max . | . . . . . . Secondary Targets 1 | . 1 . . . . Max Gunslinging Chain 1 | . 1 . . . . Shots Hit Robots 104 | . 90 . . . 14 Core Hits 40 | . 32 . . . 8 Critical Kills 1 | . 1 . . . . Critical Parts Destroyed . | . . . . . . Critical Strikes 1 | . 1 . . . . Destroy 1 | . 1 . . . . Melee Attacks . | . . . . . . Impact . | . . . . . . Slashing . | . . . . . . Piercing . | . . . . . . Sneak Attacks . | . . . . . . Combat Hostiles . | . . . . . . Follow-up Attacks . | . . . . . . Damage Inflicted 1220 | . 817 . . . 403 Guns 869 | . 778 . . . 91 Cannons . | . . . . . . Explosions 288 | . . . . . 288 Melee . | . . . . . . Ramming 63 | . 39 . . . 24 Kinetic 869 | . 778 . . . 91 Thermal . | . . . . . . Explosive 288 | . . . . . 288 Electromagnetic . | . . . . . . Impact . | . . . . . . Slashing . | . . . . . . Piercing . | . . . . . . Highest Corruption . | . . . . . . Average Corruption . | . . . . . . Corruption Purged . | . . . . . . Corruption Blocked . | . . . . . . Overload Shots . | . . . . . . Overflow Damage 4 | . 1 . . . 3 Projectiles . | . . . . . . Explosions 3 | . . . . . 3 Melee 1 | . 1 . . . . Knockbacks . | . . . . . . Impact . | . . . . . . Kinetic . | . . . . . . Secondary . | . . . . . . Self-Inflicted Damage 152 | . . . . . 152 Shots 4 | . . . . . 4 Rammed 1 | . 1 . . . . Targets Rammed 12 | . 7 . . . 5 Kicked 11 | . 6 . . . 5 Crushed . | . . . . . . Highest Temperature 60 | . 21 . . . 60 Average Temperature 16 | . 8 . . . 23 Received Heat Transfer 369 | . 225 . . . 144 Siege Activations . | . . . . . . Robots Corrupted . | . . . . . . Combat Hostiles . | . . . . . . Parts Fried 1 | . 1 . . . . Impact Corruptions 1 | . 1 . . . . Robots Melted . | . . . . . . Combat Hostiles . | . . . . . . Parts Melted . | . . . . . . Heat Transferred . | . . . . . . Parts Sabotaged . | . . . . . . Parts Stolen . | . . . . . . Parts Stripped . | . . . . . . Power Chain Reactions . | . . . . . . Alert | -11 -10 -10 -10 -9 -8 ------- Run | Yrd Mat Min Exi Min Mat Peak Influence 213 | . 213 . . . 27 Initial . | . . . . . . Average 22 | . 29 . . . 3 Maximum Alert Level 1 | . 1 . . . . Low Security (%) 99 | 100 99 100 . 100 100 Level 1 . | . . . . . . Level 2 . | . . . . . . Level 3 . | . . . . . . Level 4 . | . . . . . . Level 5 . | . . . . . . High Security . | . . . . . . Max Security . | . . . . . . Squads Dispatched 5 | . 3 . . . 2 Investigation . | . . . . . . Extermination . | . . . . . . Reinforcement 5 | . 3 . . . 2 Assault . | . . . . . . Garrison . | . . . . . . Intercept . | . . . . . . Searches Triggered . | . . . . . . Construction Impeded . | . . . . . . Haulers Reinforced . | . . . . . . Active Scanning Responses . | . . . . . . Cargo Convoy Interrupts . | . . . . . . Stealth | -11 -10 -10 -10 -9 -8 --------- Run | Yrd Mat Min Exi Min Mat Distress Signals 6 | . 6 . . . . Communications Jammed . | . . . . . . Distress Signals . | . . . . . . Times Spotted 61 | . 54 . . . 7 Peak Tracking Total 5 | . 5 . . . 2 Tactical Retreats 3 | . 2 . . . 1 Traps | -11 -10 -10 -10 -9 -8 ------- Run | Yrd Mat Min Exi Min Mat Traps Triggered 1 | . 1 . . . . Indirectly . | . . . . . . Trap Hack Attempts . | . . . . . . Triggered . | . . . . . . Disarmed . | . . . . . . Reprogrammed . | . . . . . . Reused . | . . . . . . Traps Extracted . | . . . . . . Installed . | . . . . . . Triggered . | . . . . . . Machines | -11 -10 -10 -10 -9 -8 ---------- Run | Yrd Mat Min Exi Min Mat Machines Disabled . | . . . . . . Max in Single Turn . | . . . . . . Machines Repaired . | . . . . . . Machines Dismantled . | . . . . . . Machines Sabotaged . | . . . . . . Overloaded Fab Kills . | . . . . . . Hacking | -11 -10 -10 -10 -9 -8 --------- Run | Yrd Mat Min Exi Min Mat Machines Accessed 2 | . 2 . . . . Terminals 2 | . 2 . . . . Fabricators . | . . . . . . Repair Stations . | . . . . . . Recycling Units . | . . . . . . Scanalyzers . | . . . . . . Garrison Access . | . . . . . . Total Hacks 7 | . 7 . . . . Successful 2 | . 2 . . . . Failed 5 | . 5 . . . . Catastrophic . | . . . . . . Database Lockouts . | . . . . . . Manual 3 | . 2 . 1 . . Terminals 7 | . 7 . . . . Fabricators . | . . . . . . Repair Stations . | . . . . . . Recycling Units . | . . . . . . Scanalyzers . | . . . . . . Garrison Access . | . . . . . . Terminal Hacks 2 | . 2 . . . . Hauler Manifests 1 | . 1 . . . . Zone Layout 1 | . 1 . . . . Fabricator Hacks . | . . . . . . Repair Station Hacks . | . . . . . . Recycling Unit Hacks . | . . . . . . Scanalyzer . | . . . . . . Garrison Access Hacks . | . . . . . . Unauthorized Hacks . | . . . . . . Terminals . | . . . . . . Fabricators . | . . . . . . Repair Stations . | . . . . . . Recycling Units . | . . . . . . Scanalyzers . | . . . . . . Garrison Access . | . . . . . . Data Cores Recovered . | . . . . . . Used . | . . . . . . Hacking Detections 1 | . 1 . . . . Full Trace Events . | . . . . . . Feedback Events . | . . . . . . Feedback Blocked . | . . . . . . Robot Schematics Acquired . | . . . . . . Robots Built . | . . . . . . Authchips . | . . . . . . Time . | . . . . . . Total Robot Build Rating . | . . . . . . Part Schematics Acquired . | . . . . . . Parts Built . | . . . . . . Authchips . | . . . . . . Time . | . . . . . . Total Part Build Rating . | . . . . . . Parts Repaired . | . . . . . . Time . | . . . . . . Parts Recycled . | . . . . . . Recycled Matter . | . . . . . . Retrieved Matter . | . . . . . . Retrieved Components . | . . . . . . Parts Scanalyzed . | . . . . . . Part Schematics Acquired . | . . . . . . Parts Damaged . | . . . . . . Bothacking | -11 -10 -10 -10 -9 -8 ------------ Run | Yrd Mat Min Exi Min Mat Used RIF Installer . | . . . . . . Robots Hacked . | . . . . . . Non-combat . | . . . . . . Combat . | . . . . . . Robot Hacks Applied . | . . . . . . Relay Couplers Released . | . . . . . . Fabnet Peak Effective % . | . . . . . . Robots Rewired . | . . . . . . Allies Hacked . | . . . . . . Hacks Repelled . | . . . . . . Allies | -11 -10 -10 -10 -9 -8 -------- Run | Yrd Mat Min Exi Min Mat Total Allies 2 | . . 2 . . . Largest Group 2 | . . 2 2 . . Highest-Rated Group 39 | . . 39 39 . . Highest-Rated Ally 31 | . . 31 31 . . Total Orders . | . . . . . . Ally Attacks . | . . . . . . Total Damage . | . . . . . . Kills . | . . . . . . Allies Corrupted . | . . . . . . Allies Melted . | . . . . . . Intel | -11 -10 -10 -10 -9 -8 ------- Run | Yrd Mat Min Exi Min Mat Robot Analysis Total . | . . . . . . Derelict Logs Recovered . | . . . . . . Drone Launches . | . . . . . . Drone Recoveries . | . . . . . . Exploration | -11 -10 -10 -10 -9 -8 ------------- Run | Yrd Mat Min Exi Min Mat Turns Passed 5138 | 70 3241 249 953 221 404 Spaces Moved 1352 | 44 854 63 235 56 100 Core 16 | 14 . . . . 2 Treads 260 | 30 230 . . . . Legs 1076 | . 624 63 235 56 98 Wheels . | . . . . . . Hover . | . . . . . . Flight . | . . . . . . Fastest Speed 50 | 50 160 400 120 400 260 Average Speed 342 | 125 336 400 397 400 290 Slowest Speed 1350 | 160 400 400 400 400 1350 Overloaded Moves . | . . . . . . Propulsion Burnouts . | . . . . . . Robots Hopped . | . . . . . . Cave-ins Triggered . | . . . . . . Exploration Rate (%) 35 | 4 95 22 60 27 6 Regions Visited 5 Branch Regions 3 Pre-discovered Areas . | . . . . . . Known Exits Taken . | . . . . . . Unknown Exits Taken 5 | 1 1 1 1 1 . Scrap Searched . | . . . . . . Spaces Dug . | . . . . . . Terrain Destroyed 8 | . . . . . 8 Melee . | . . . . . . Projectile . | . . . . . . AOE 8 | . . . . . 8 Terrain Rammed . | . . . . . . Walls Destroyed . | . . . . . . Machines Disabled . | . . . . . . Actions | -11 -10 -10 -10 -9 -8 --------- Run | Yrd Mat Min Exi Min Mat Total 1717 | 59 1093 63 256 56 190 Wait 180 | . 116 1 . 1 62 Move 1347 | 43 853 62 234 55 100 Hop . | . . . . . . Pick Up 59 | 10 27 . 19 . 3 Fast Attach . | . . . . . . Attach 21 | 6 8 . . . 7 Detach 1 | . 1 . . . . Swap 9 | . 6 . 2 . 1 Drop 4 | . 3 . 1 . . Fire 84 | . 72 . . . 12 Melee . | . . . . . . Ram . | . . . . . . Kick 11 | . 6 . . . 5 Crush 1 | . 1 . . . . Escape Stasis . | . . . . . . Rewire . | . . . . . . Trap . | . . . . . . Miscellaneous . | . . . . . . Route ------- -11/Scrapyard -10/Materials (discovered 5 exits: [*Mat x2] / [*Min x2] / [*Sub]) -10/Mines -10/Exiles -9/Mines -8/Materials History --------- Turn | Location | Event 10 | -11/Scrapyard | Discovered new exit (range 16) 71 | -11/Scrapyard | Entered Materials 303 | -10/Materials | Build established: Mutant 332 | -10/Materials | Discovered new exit (range 13) 536 | -10/Materials | Discovered new exit (range 9) 2811 | -10/Materials | Discovered new exit (range 8) 2891 | -10/Materials | Discovered new exit (range 11) 3204 | -10/Materials | Discovered new exit (range 13) 3312 | -10/Materials | Entered Mines 3537 | -10/Mines | Deemed a non-threat by the Exiles lab entrance 3541 | -10/Mines | Discovered new exit (range 5) 3561 | -10/Mines | Entered Exiles 3561 | -10/Exiles | Accompanied by 2 allies 3591 | -10/Exiles | Led the pair of lost Derelicts to a safe place 3657 | -10/Exiles | Met 8R-AWN 3729 | -10/Exiles | Met EX-HEX 3849 | -10/Exiles | Met EX-BIN 3905 | -10/Exiles | Aligned with FarCom system 3909 | -10/Exiles | Given EX-Vault access code 4009 | -10/Exiles | Opened EX-Vault 4041 | -10/Exiles | Found Prototype Storage 4042 | -10/Exiles | Identified Superbattery 4210 | -10/Exiles | Warned to stay clear of 0b10 Research branches 4330 | -10/Exiles | Met EX-DEC 4474 | -10/Exiles | Discovered new exit (range 11) 4514 | -10/Exiles | Left Exiles lab with Superbattery 4514 | -10/Exiles | Entered Mines 4524 | -9/Mines | Met a Derelict bent on vengeance 4691 | -9/Mines | Discovered new exit (range 15) 4735 | -9/Mines | Entered Materials 4735 | -8/Materials | Evolved 4 slots: Propulsion x2, Utility x2 5032 | -8/Materials | Lost 7 parts (1p1n1u4w) 5123 | -8/Materials | Core integrity fell below 50% 5132 | -8/Materials | Core integrity fell below 20% 5139 | -8/Materials | Destroyed by X-57 Shotgunner with High-powered Shotgun Last Messages --------------- 05018_ R-06 Scavenger collects Lgt. Ion Engine. 05019_ U-05 Engineer builds a Wall. 05023_ Kicked R-06 Scavenger out of the way. 05023_ U-05 Engineer builds a Wall. 05024_ U-05 Engineer lays Concrete. 05025_ Kicked U-05 Engineer out of the way. 05026_ U-05 Engineer lays Concrete. 05031_ U-05 Engineer builds a Wall. 05032_ U-05 Engineer lays Concrete. 05034_ U-05 Engineer builds a Wall. 05036_ U-05 Engineer lays Concrete. 05038_ U-05 Engineer builds a Door. 05042_ Aluminum Leg destroyed. 05060_ U-05 Engineer lays Concrete. 05074_ Kicked U-05 Engineer out of the way. 05085_ Kicked U-05 Engineer. 05094_ Aluminum Leg destroyed. 05103_ U-05 Engineer builds a Door. 05115_ Aluminum Leg destroyed. 05116_ Recoil Stabilizer destroyed. Map ----- +----------------------------------------------------+ | ??????????????????????????????? | | ??????????????????????????????? | | ??????????????????????????????? | | ??????????????????????????????? | | ??????????????????????????????? | | ??????????????????????????????? | | ??????????????????????????????? | | ???????????????????#??????????? | | ??#######???????? ##?????????? | | ??# ####### #?????????? | | ??# #?????????? | | ??# H ???????? | | ??# % #?????????? | | ??# ####### #?????????? | | ??## ##?????????????????????? | | ???# #??????????????????????? | | ???# #??????????????????????? | | ???# ##########?????????????? | | ???# x # #?????????????? | | ???# r# """#?????????????? | | ???# # """#?????????????? | | ???# x# ! """#?????????????? | | ???# + #?????????????? | | ???# # """#?????????????? | | ???# # """#?????????????? | | ???# @# """#?????????????? | | ???# # #?????????????? | | ???# ##########?????????????? | | ???# # #?????????????? | | ???# # #?????????????? | | ???# # #?????????????? | | ???# + #?????????????? | | ???# # #?????????????? | | ???# # #?????????????? | | ???# # #?????????????? | | ???##### #?????????????? | | ???????# #?????????????? | | ???????##########?????????????? | | ??????????????????????????????? | | ??????????????????????????????? | | ??????????????????????????????? | | ??????????????????????????????? | | ??????????????????????????????? | | ??????????????????????????????? | | ??????????????????????????????? | | ??????????????????????????????? | | ??????????????????????????????? | | ??????????????????????????????? | | | | | +----------------------------------------------------+ Best States ------------- Heat Dissipation 31 Energy Generation 10 Energy Capacity 250 Matter Stores 300 Matter Capacity 300 Sight Range 16 Terrain Scan Density 10 Armor Coverage 150 Evasion (%) 50 Targeting Accuracy 10 Recoil Reduction 4 Item Schematics ----------------- None Robot Schematics ------------------ None Fabricated ------------ Nothing Alien Tech Used ----------------- None Achievements -------------- None Challenges ------------ None Game ------ Seed MiningFluxTerrabomb Manual? 0 Play Time 00:22:33 Cumulative 9.4 hours Start 2024.04.07 @ 08:53:38 End 2024.04.07 @ 09:19:07 Sessions 1 Manual Loads 0 Difficulty Rogue Special Mode None Game No. 19 Rogue 19 Adventurer 0 Explorer 0 Win Type - Total 0 Types 0/0/0/0/0/0/0/0/0 Lore% 14 Gallery% 11 Achievement% 13 Wizard Run 0 Options --------- Layout 1 ASCII 0 Keyboard 0 Movement Numpad Keybinds 0 Fullscreen 1 Font 24/Smallcaps Map View 50x35 Zoom Use 0% Tactical HUD 1 Map Filters NONE Filters NONE Steam 1 RUN: 2b3d0eb8-cc77-42e0-aa73-a5fc56fabfdb